[Event "FIDE Womens Grand Prix-I 2022-23"]
[Site "Nur-Sultan"]
[Date "2022.09.27"]
[Round "9.2"]
[White "Wagner, Dinara"]
[Black "Assaubayeva, Bibisara"]
[Result "1/2-1/2"]
[ECO "D12"]
[WhiteElo "2358"]
[BlackElo "2443"]
[Annotator "TA"]
[PlyCount "115"]
[EventDate "2022.09.15"]
[EventType "tourn"]
[EventCountry "KAZ"]
[SourceTitle "playchess.com"]
[Source "ChessBase"]
[SourceQuality "1"]
[TimeControl "40/5400+30:1800+30"]

{[%evp 11,115,34,28,33,30,0,24,11,18,-4,0,-4,17,-18,33,29,75,6,0,0,6,8,4,0,0,-4,0,-13,0,0,0,0,0,0,10,14,25,-14,-10,-21,-14,-17,-17,-14,-21,-19,-8,-8,-14,-116,-29,-154,-156,-158,-56,-56,-60,-58,-80,-54,-32,-67,-86,-70,-77,-87,-69,-77,-77,-80,-70,-58,0,0,0,0,0,0,0,0,0,0,0,-23,-23,-23,-23,-23,-23,-23,-23,-23,-23,-23,-23,-23,-23,-23,0,0,0,0,0,0,0,0]} 1. d4 {[%emt 0:00:04]} d5 {[%emt 0:00:08]} 2. c4 {[%emt 0:00:14]} c6 {[%emt 0:00:07]} 3. Nf3 {[%emt 0:00:16]} Nf6 {[%emt 0:00:05]} 4. e3 {[%emt 0:00:07]} Bf5 {[%emt 0:00:04]} 5. Nc3 {[%emt 0:00:04]} e6 {[%emt 0:00:06]} 6. Nh4 {[%emt 0:00:06]} Bg6 {[%emt 0:00:03]} 7. Bd2 {[%emt 0:00:33] D12: Slav Defence: 3 Nf3 Nf6 4 e3 Bf5.} Nbd7 {[%emt 0:00:11]} 8. Qb3 {[%emt 0:02:17]} Qc7 {[%emt 0:02:16]} 9. Nxg6 {[%emt 0:08:48] White has an edge. 9.f3 is setting a new trend.} hxg6 {[%emt 0:00:02]} 10. O-O-O {[%emt 0:01:08]} a5 {[%emt 0:07:22]} 11. cxd5 {[%emt 0:12:27]} exd5 {[%emt 0:02:37]} 12. Qc2 {[%emt 0:02:01]} Bb4 {[%emt 0:12:12]} (12... Rxh2 $11 13. Rxh2 Qxh2) 13. h4 $14 {[%emt 0:15:32] [#]} a4 $146 {[%emt 0:06:50]} (13... c5 $11 {might be stronger.}) ({Predecessor:} 13... Nf8 14. f3 Ne6 15. Bd3 c5 16. dxc5 Qxc5 17. Kb1 O-O 18. a3 Rfc8 19. Qb3 Bxc3 20. Bxc3 Qxe3 {0-1 (51) Keymer,V (2664)-Artemiev,V (2700) chess24.com INT 2022}) 14. f3 {[%emt 0:10:53]} (14. Kb1 $16) 14... a3 $11 {[%emt 0:03:55]} 15. b3 {[%emt 0:00:31]} O-O-O {[%emt 0:02:16][%cal Be8c8,Bc8b8,Bb8a8][%mdl 32]} 16. Kb1 {[%emt 0:02:34][%cal Oc3b5] [#] aiming for Nb5!} Kb8 {[%emt 0:03:06]} 17. Bd3 {[%emt 0:08:54]} Qa5 {[%emt 0:04:31]} 18. e4 {[%emt 0:07:38]} dxe4 {[%emt 0:08:07]} 19. fxe4 {[%emt 0:00:10]} Ka8 {[%emt 0:03:44]} 20. e5 {[%emt 0:19:29]} Ng4 {[%emt 0:03:35] And now ...Nf2 would win.} 21. Ne4 {[%emt 0:01:26] Inhibits Nf2.} Nb6 {[%emt 0:14:13]} 22. Nd6 {[%emt 0:02:15]} Rd7 {[%emt 0:02:20]} (22... Nd5 $5 {[%cal Rg4e3]} 23. Nxf7 Nde3 24. Bxb4 Qxb4 $11) 23. Be4 {[%emt 0:02:56][%cal Od6b7]} Bxd2 {[%emt 0:06:37]} 24. Qxd2 {[%emt 0:00:12]} Qxd2 {[%emt 0:00:07]} 25. Rxd2 {[%emt 0:00:03]} f6 {[%emt 0:01:04]} 26. Bxg6 {[%emt 0:00:45] Strongly threatening Bf5.} fxe5 {[%emt 0:00:07]} 27. dxe5 {[%emt 0:01:11]} Nxe5 {[%emt 0:00:04]} 28. Bf5 {[%emt 0:00:07]} Rdd8 {[%emt 0:00:45]} 29. Re1 {[%emt 0:01:13]} Nd5 {[%emt 0:02:05]} 30. Ne4 {[%emt 0:01:02]} (30. Rxe5 $11 Rxd6 31. Be4) 30... Rxh4 {[%emt 0:02:28]} (30... g6 $17 31. Bh3 Kb8) 31. Kc1 {[%emt 0:00:04]} (31. Be6 $1 $11 {remains equal.}) 31... Re8 $17 {[%emt 0:01:59] ...g6 is the strong threat.} 32. Nc5 {[%emt 0:00:27]} g6 {[%emt 0:05:08]} (32... Rf4 $17 33. g4 g6 34. Bxg6 Re7) 33. Bxg6 $15 {[%emt 0:00:15]} Re7 {[%emt 0:01:38]} 34. Bf5 {[%emt 0:00:17]} b6 {[%emt 0:00:37]} 35. Ne6 {[%emt 0:00:20]} Nf7 {[%emt 0:00:42] Pair of Knights!} 36. g3 {[%emt 0:01:11]} Rh6 {[%emt 0:00:16]} 37. Rde2 {[%emt 0:00:52]} Nd6 {[%emt 0:03:42]} 38. g4 {[%emt 0:00:04]} Rh4 {[%emt 0:00:11]} 39. Rc2 {[%emt 0:01:00]} Nb4 {[%emt 0:01:21]} 40. Rd2 {[%emt 0:00:04]} Nxf5 {[%emt 0:02:05]} 41. gxf5 {[%emt 0:30:21]} Rf4 {[%emt 0:07:34]} (41... Ka7 $15) 42. Rd8+ $11 {[%emt 0:00:00]} Ka7 {[%emt 0:00:02]} 43. Nxf4 {[%emt 0:00:00]} Rxe1+ {[%emt 0:00:01][%mdl 4096] Endgame KRN-KRN} 44. Kd2 {[%emt 0:00:00]} Re5 {[%emt 0:01:07]} 45. Nd3 {[%emt 0:00:00]} Nxd3 {[%emt 0:00:02]} 46. Kxd3 {[%emt 0:00:00]} Rxf5 {[%emt 0:00:06] KR-KR} 47. Rd4 {[%emt 0:00:00]} b5 {[%emt 0:02:41] Threatens to win with ...Rf2.} 48. b4 {[%emt 0:00:00]} Rf2 {[%emt 0:01:57]} 49. Kc3 {[%emt 0:00:00]} Rxa2 {[%emt 0:02:11] Hoping for ...Rb2.} 50. Kb3 {[%emt 0:00:00]} Ra1 {[%emt 0:00:06]} 51. Rh4 $1 {[%emt 0:00:32]} Kb6 {[%emt 0:00:13]} 52. Rg4 {[%emt 0:01:06]} Rc1 {[%emt 0:05:49]} 53. Kxa3 {[%emt 0:00:56]} Rc3+ {[%emt 0:00:04]} 54. Kb2 {[%emt 0:00:35]} Rc4 {[%emt 0:00:05]} 55. Rxc4 {[%emt 0:00:15][%mdl 64] [#] Remove Defender. The position is equal.} bxc4 {[%emt 0:00:02]} 56. Kc2 $1 {[%emt 0:00:10]} c5 {[%emt 0:00:12]} 57. bxc5+ {[%emt 0:00:16]} Kxc5 {[%emt 0:00:05]} 58. Kc3 {[%emt 0:00:01] Weighted Error Value: White=0.14 (very precise) /Black=0.12 (very precise)} 1/2-1/2

[Event "FIDE Womens Grand Prix-I 2022-23"]
[Site "Nur-Sultan"]
[Date "2022.09.27"]
[Round "9.3"]
[White "Paehtz, Elisabeth"]
[Black "Kashlinskaya, Alina"]
[Result "1/2-1/2"]
[ECO "E48"]
[WhiteElo "2477"]
[BlackElo "2491"]
[Annotator "TA"]
[PlyCount "70"]
[EventDate "2022.09.15"]
[EventType "tourn"]
[EventCountry "KAZ"]
[SourceTitle "playchess.com"]
[Source "ChessBase"]
[SourceQuality "1"]
[TimeControl "40/5400+30:1800+30"]

{[%evp 12,70,2,-6,32,17,37,37,40,58,37,52,43,33,50,44,76,73,70,68,75,38,47,18,52,27,37,15,22,0,0,0,1,0,0,0,0,0,13,0,0,0,0,0,0,0,0,-2,0,-3,0,0,0,-4,-2,-3,-3,-3,-3,-4,0]} 1. d4 {[%emt 0:00:01]} Nf6 {[%emt 0:00:08]} 2. c4 {[%emt 0:00:03]} e6 {[%emt 0:00:09]} 3. Nc3 {[%emt 0:00:05]} Bb4 {[%emt 0:00:15]} 4. e3 {[%emt 0:00:04]} O-O {[%emt 0:00:19]} 5. Bd3 {[%emt 0:00:03]} d5 {[%emt 0:00:43]} 6. Nge2 {[%emt 0:00:11]} dxc4 {[%emt 0:09:44]} 7. Bxc4 {[%emt 0:00:05]} Nbd7 {[%emt 0:00:25] E48: Nimzo-Indian: Rubinstein: 5 Bd3 d5 including 6 Ne2, but excluding 6 a3.} 8. O-O {[%emt 0:03:21]} e5 {[%emt 0:04:00] [#]} 9. Bxf7+ $1 {[%emt 0:22:20]} Rxf7 {[%emt 0:00:23] White is slightly better.} 10. dxe5 {[%emt 0:00:05] Hoping for e6.} Qe7 {[%emt 0:03:55]} (10... Ng4 $2 11. e6 $18) 11. exf6 {[%emt 0:00:11]} Nxf6 {[%emt 0:00:05]} 12. Nf4 {[%emt 0:32:15]} c6 {[%emt 0:03:28] [#] Prevents Ncd5.} 13. f3 $146 {[%emt 0:00:03]} ({Predecessor:} 13. Bd2 Bf5 14. Nce2 Bxd2 15. Qxd2 g5 16. Ng3 Ne4 17. Nxe4 gxf4 18. Nd6 Rd8 19. Rad1 {1-0 (42) Djuric,S (2358)-Kacani,K (2091) Cesenatico 2019}) 13... Bc5 {[%emt 0:04:53]} 14. Kh1 {[%emt 0:02:22]} b6 {[%emt 0:06:14]} 15. Re1 {[%emt 0:03:43]} Bd6 {[%emt 0:06:23]} 16. e4 {[%emt 0:05:47][%cal Oe4e5] [#] e5! is the strong threat.} Nd7 {[%emt 0:07:08]} 17. Nd3 {[%emt 0:06:58][%cal Oe4e5] Strongly threatening e5!} Ba6 {[%emt 0:01:18] White must now prevent ...Bxd3.} 18. e5 {[%emt 0:02:46]} Bxd3 {[%emt 0:04:12]} (18... Bxe5 $2 19. Nxe5 Nxe5 20. f4 $18) 19. exd6 {[%emt 0:00:39]} Qxd6 {[%emt 0:01:24] The position is equal.} 20. b3 {[%emt 0:07:00][%cal Oc1a3]} Nf6 {[%emt 0:04:42]} 21. Ba3 {[%emt 0:00:44]} Qd7 {[%emt 0:03:44]} 22. Qd2 {[%emt 0:00:26]} Rd8 {[%emt 0:03:01]} 23. Rad1 {[%emt 0:00:05]} c5 {[%emt 0:01:18]} 24. Bb2 {[%emt 0:02:32]} Re7 {[%emt 0:04:42]} 25. Rxe7 {[%emt 0:00:45]} Qxe7 {[%emt 0:00:03]} 26. Na4 {[%emt 0:03:13]} Ne8 {[%emt 0:04:19]} 27. Re1 {[%emt 0:01:07]} Bg6 {[%emt 0:05:46]} 28. Qf2 {[%emt 0:00:05]} Qf7 {[%emt 0:01:59]} 29. Nc3 {[%emt 0:00:51]} Nf6 {[%emt 0:00:34]} 30. Kg1 {[%emt 0:01:53]} Qd7 {[%emt 0:02:41]} 31. h3 {[%emt 0:00:27]} Qd2 {[%emt 0:01:12]} 32. Rd1 {[%emt 0:02:20]} Qxf2+ {[%emt 0:00:19]} 33. Kxf2 {[%emt 0:00:03]} Rxd1 {[%emt 0:00:14]} 34. Nxd1 {[%emt 0:00:05]} Nd5 {[%emt 0:00:11]} 35. Nc3 {[%emt 0:01:53] Against Bb1} Nxc3 {[%emt 0:02:17] Weighted Error Value: White=0.06 (flawless) /Black=0.06 (flawless)} 1/2-1/2

[Event "FIDE Womens Grand Prix-I 2022-23"]
[Site "Nur-Sultan"]
[Date "2022.09.27"]
[Round "9.4"]
[White "Zhu, Jiner"]
[Black "Lagno, Kateryna"]
[Result "0-1"]
[ECO "B45"]
[WhiteElo "2464"]
[BlackElo "2547"]
[Annotator "TA"]
[PlyCount "64"]
[EventDate "2022.09.15"]
[EventType "tourn"]
[EventCountry "KAZ"]
[SourceTitle "playchess.com"]
[Source "ChessBase"]
[SourceQuality "1"]
[TimeControl "40/5400+30:1800+30"]

{[%evp 15,64,22,25,18,10,19,15,12,22,11,20,10,20,22,25,0,0,0,0,0,0,0,0,0,0,0,0,0,0,0,0,0,0,-18,158,-7,0,0,0,0,0,-229,-14,-284,-286,-308,-258,-263,-239,-231,-220]} 1. e4 {[%emt 0:00:05]} c5 {[%emt 0:00:07]} 2. Nf3 {[%emt 0:00:15]} e6 {[%emt 0:00:05]} 3. d4 {[%emt 0:00:12]} cxd4 {[%emt 0:00:05]} 4. Nxd4 {[%emt 0:00:03]} Nc6 {[%emt 0:00:04]} 5. Nc3 {[%emt 0:00:12]} Nf6 {[%emt 0:00:06]} 6. Nxc6 {[%emt 0:02:26]} bxc6 {[%emt 0:00:16]} 7. e5 {[%emt 0:00:09]} Nd5 {[%emt 0:00:08]} 8. Ne4 {[%emt 0:00:09]} Bb7 {[%emt 0:00:37]} 9. c4 {[%emt 0:00:28] B45: Sicilian Four Knights.} Nb4 {[%emt 0:00:38]} 10. c5 {[%emt 0:00:13] And now Qb3 would win.} Qb8 {[%emt 0:01:14] 10...Ba6 is not played anymore.} 11. f4 {[%emt 0:00:15] The position is equal.} Ba6 {[%emt 0:00:45] Prevents Bc4.} 12. Be2 {[%emt 0:00:16] is now debated instead of 12.a3.} Bxe2 {[%emt 0:00:32]} 13. Qxe2 {[%emt 0:00:13]} Nd5 {[%emt 0:00:13][%cal Of8c5]} 14. O-O {[%emt 0:00:14]} Qb4 {[%emt 0:00:25] [#]} 15. Kh1 $146 {[%emt 0:13:30]} ({Predecessor:} 15. a3 Bxc5+ 16. Kh1 Qb6 17. b4 Be7 18. f5 Qb5 19. Qf3 exf5 20. Qxf5 O-O 21. Bd2 {0-1 (80) Caruana,F (2786)-Fedoseev,V (2701) Chess.com INT 2022}) 15... Bxc5 {[%emt 0:00:44]} 16. Bd2 {[%emt 0:01:04]} Qd4 {[%emt 0:03:31]} 17. Rad1 {[%emt 0:06:58] [#] Strongly threatening Be1.} Be7 {[%emt 0:01:06]} 18. Bc3 {[%emt 0:09:20]} Qe3 {[%emt 0:07:52]} 19. Qc2 {[%emt 0:00:18] Black must now prevent Rd4.} Qb6 {[%emt 0:04:46]} 20. Bd4 {[%emt 0:01:28]} c5 {[%emt 0:06:58]} 21. Nxc5 {[%emt 0:04:37]} (21. Bxc5 Bxc5 22. Nxc5 (22. Qxc5 $2 Qxc5 23. Nxc5 Ne3 $19) 22... Rc8 $17) 21... Rc8 {[%emt 0:05:01][%cal Rc8c5]} 22. Rc1 {[%emt 0:00:10]} O-O {[%emt 0:11:44]} 23. Qf2 {[%emt 0:03:39]} Qb5 {[%emt 0:13:51]} 24. b3 {[%emt 0:07:53]} (24. a4 $5 {[%cal Ra4b5]} Qb4 25. b3 $11) 24... Rc6 $2 {[%emt 0:17:58]} (24... d6 $11 25. exd6 Bxd6) 25. Rc4 $2 {[%emt 0:17:11]} ({White should play} 25. a4 $16 Qa5 26. f5 (26. Nxd7 Rxc1 27. Rxc1 Rd8 $11)) 25... Bxc5 {[%emt 0:08:03]} 26. Bxc5 {[%emt 0:00:51]} Rfc8 {[%emt 0:00:10][%cal Rc6c5]} 27. f5 {[%emt 0:01:49][%cal Of5e6] [#] Hoping for fxe6!} f6 $1 {[%emt 0:00:59][%cal Rc6c5]} (27... Rxc5 28. fxe6 Nf6 29. Rxc5 (29. exf6 dxe6 30. a4 Qb6 $14) 29... Rxc5 30. exd7 $16 (30. exf6 dxe6 31. Rd1 Rd5 $11)) 28. exf6 $2 {[%emt 0:15:40]} Nxf6 $2 {[%emt 0:00:04]} (28... Rxc5 $19 29. a4 Qb6) 29. fxe6 $2 {[%emt 0:02:42][%mdl 8192] Now White is beyond hope.} Rxc5 $19 {[%emt 0:04:20]} 30. a4 {[%emt 0:10:21]} Qb6 {[%emt 0:00:31]} 31. a5 {[%emt 0:02:04]} Qb5 {[%emt 0:00:13]} ({Don't play} 31... Qxa5 32. b4 Qa6 33. Rxc5 Rxc5 34. bxc5 Qxe6 35. Ra1 $18) 32. exd7 {[%emt 0:00:16]} Rxc4 {[%emt 0:00:04] Weighted Error Value: White=0.41/Black=0.26 (precise)} 0-1

[Event "FIDE Womens Grand Prix-I 2022-23"]
[Site "Nur-Sultan"]
[Date "2022.09.27"]
[Round "9.5"]
[White "Abdumalik, Zhansaya"]
[Black "Goryachkina, Aleksandra"]
[Result "1/2-1/2"]
[ECO "C67"]
[WhiteElo "2503"]
[BlackElo "2579"]
[Annotator "TA"]
[PlyCount "29"]
[EventDate "2022.09.15"]
[EventType "tourn"]
[EventCountry "KAZ"]
[SourceTitle "playchess.com"]
[Source "ChessBase"]
[SourceQuality "1"]
[TimeControl "40/5400+30:1800+30"]

{[%evp 27,29,0,0,0]} 1. e4 {[%emt 0:00:03]} e5 {[%emt 0:00:22]} 2. Nf3 {[%emt 0:00:06]} Nc6 {[%emt 0:00:08]} 3. Bb5 {[%emt 0:00:07]} Nf6 {[%emt 0:00:15]} 4. O-O {[%emt 0:00:35]} Nxe4 {[%emt 0:00:34]} 5. d4 {[%emt 0:00:32][%cal Bd2d4,Bd4e5][%mdl 32]} Nd6 {[%emt 0:00:40]} 6. dxe5 {[%emt 0:00:07]} Nxb5 {[%emt 0:00:07]} 7. a4 {[%emt 0:00:05]} Nbd4 {[%emt 0:01:58]} 8. Nxd4 {[%emt 0:00:07]} d6 {[%emt 0:00:42]} 9. exd6 {[%emt 0:00:16]} Nxd4 {[%emt 0:00:33]} 10. Qxd4 {[%emt 0:00:06]} Qxd6 {[%emt 0:00:06]} 11. Qe4+ {[%emt 0:00:03]} Qe6 {[%emt 0:00:06]} 12. Qd4 {[%emt 0:00:03]} Qd6 {[%emt 0:00:05]} 13. Qe4+ {[%emt 0:00:03]} Qe6 {[%emt 0:00:06]} 14. Qd4 {[%emt 0:00:05]} Qd6 {[%emt 0:00:05]} 15. Qe4+ {[%emt 0:00:05] An uneventful encounter. C67: Ruy Lopez: Berlin Defence: 4 0-0 Nxe4.} 1/2-1/2

[Event "FIDE Womens Grand Prix-I 2022-23"]
[Site "Nur-Sultan"]
[Date "2022.09.27"]
[Round "9.6"]
[White "Kosteniuk, Alexandra"]
[Black "Vaishali, Rameshbabu"]
[Result "1-0"]
[ECO "B30"]
[WhiteElo "2521"]
[BlackElo "2449"]
[Annotator "TA"]
[PlyCount "71"]
[EventDate "2022.09.15"]
[EventType "tourn"]
[EventCountry "KAZ"]
[SourceTitle "playchess.com"]
[Source "ChessBase"]
[SourceQuality "1"]
[TimeControl "40/5400+30:1800+30"]

{[%evp 16,71,10,13,18,12,12,15,12,5,10,13,70,69,64,68,70,51,52,0,-3,-4,-6,-3,-2,-12,0,-14,-16,-10,0,0,12,0,16,6,4,16,125,112,124,123,151,136,246,166,227,227,279,284,1017,1054,1042,1024,1796,1718,1613,1404]} 1. e4 {[%emt 0:00:03]} c5 {[%emt 0:00:40]} 2. Nf3 {[%emt 0:00:13]} Nc6 {[%emt 0:00:06]} 3. Bb5 {[%emt 0:00:10]} e6 {[%emt 0:00:12]} 4. O-O {[%emt 0:00:15]} Nge7 {[%emt 0:00:12]} 5. Re1 {[%emt 0:00:12]} a6 {[%emt 0:00:34]} 6. Bf1 {[%emt 0:00:15]} d5 {[%emt 0:00:18]} 7. exd5 {[%emt 0:00:19]} Nxd5 {[%emt 0:00:05]} 8. d4 {[%emt 0:00:48]} Nf6 {[%emt 0:00:14]} 9. Be3 {[%emt 0:02:21]} cxd4 {[%emt 0:00:14] B30: Sicilian: 2...Nc6 3 Bb5, lines without ...g6.} 10. Nxd4 {[%emt 0:00:06]} Bd7 {[%emt 0:00:09]} 11. Nb3 {[%emt 0:08:29]} Qc7 {[%emt 0:07:05] The position is equal.} 12. N1d2 {[%emt 0:07:47] [#]} Nd5 $146 {[%emt 0:22:39][%cal Bf6d5,Bd5f4,Bf4g6][%mdl 32]} ({Predecessor:} 12... Be7 13. c3 O-O 14. g3 Rad8 15. Qe2 Nd5 16. Bc5 Bxc5 17. Nxc5 Bc8 18. Rad1 Na5 {½-½ (52) Herrmann,H-Meissner,R GER email 2009}) 13. Bc5 {[%emt 0:09:23]} Be7 {[%emt 0:03:25]} (13... Bxc5 $11 14. Nxc5 Rd8) 14. Ne4 $1 $14 {[%emt 0:01:27]} O-O {[%emt 0:04:40]} 15. c4 {[%emt 0:01:51]} Nf4 {[%emt 0:01:44]} 16. g3 {[%emt 0:20:57]} Ng6 {[%emt 0:01:35]} 17. Qh5 {[%emt 0:01:09]} (17. Bd6 $14 Bxd6 18. Qxd6) 17... b6 $11 {[%emt 0:17:41]} 18. Bxe7 {[%emt 0:02:37]} Ncxe7 {[%emt 0:00:08]} 19. c5 $40 {[%emt 0:01:33][%mdl 128] White is up to no good.} Bc6 {[%emt 0:04:56]} 20. Rac1 {[%emt 0:02:05][%cal Ba1c1,Bc1c3,Bc3c7][%mdl 32]} Bd5 {[%emt 0:02:30]} 21. Nbd2 {[%emt 0:06:47]} bxc5 {[%emt 0:07:16]} 22. Nxc5 {[%emt 0:02:20]} Qa5 {[%emt 0:01:40]} 23. Qe2 {[%emt 0:12:39]} Nf5 {[%emt 0:15:42] Hoping for ...Nd4.} 24. Ndb3 {[%emt 0:01:01] Against Nd4} Qb4 {[%emt 0:02:15]} (24... Qxa2 $2 25. Ra1 Bxb3 26. Rxa2 Bxa2 27. b3 $18) 25. Rc3 {[%emt 0:06:32]} Rfd8 {[%emt 0:02:43]} 26. Nxa6 {[%emt 0:01:09]} Qa4 {[%emt 0:02:05]} (26... Qb6 $11) 27. Nc7 $16 {[%emt 0:02:12]} Rab8 {[%emt 0:01:59]} 28. Nxd5 {[%emt 0:02:53]} exd5 {[%emt 0:00:03]} 29. Qc2 {[%emt 0:02:21]} d4 {[%emt 0:01:37]} (29... Nd6 $16 {might work better.}) 30. Rc7 {[%emt 0:01:37]} Nd6 {[%emt 0:00:31] [#]} (30... Nh6 $142 31. Qb1 Ra8) 31. Qc5 $1 $18 {[%emt 0:01:03]} Qxa2 {[%emt 0:00:28]} 32. Nxd4 {[%emt 0:00:09][%cal Bb3d4,Bd4f5,Bf5h6][%mdl 32] Threatens to win with Nc6.} Nb7 $2 {[%emt 0:00:31]} (32... Nf8 33. Nc6 Ne6) 33. Qc3 {[%emt 0:02:04] Intending Nf5 and mate. White is clearly winning.} Qa5 {[%emt 0:00:30] Inhibits Nf5.} 34. b4 {[%emt 0:01:46]} Qb6 {[%emt 0:00:28]} 35. Nf5 {[%emt 0:00:17][%csl Gf5][%cal Rc3g7]} Qf6 {[%emt 0:00:33] [#]} 36. Nh6+ $1 {[%emt 0:00:08][%mdl 512] Weighted Error Value: White=0.12 (very precise) /Black=0.23 (precise)} 1-0

[Event "FIDE Womens Grand Prix-I 2022-23"]
[Site "Nur-Sultan"]
[Date "2022.09.28"]
[Round "10.1"]
[White "Shuvalova, Polina"]
[Black "Vaishali, Rameshbabu"]
[Result "1/2-1/2"]
[ECO "B33"]
[WhiteElo "2510"]
[BlackElo "2449"]
[Annotator "TA"]
[PlyCount "39"]
[EventDate "2022.09.15"]
[EventType "tourn"]
[EventCountry "KAZ"]
[SourceTitle "playchess.com"]
[Source "ChessBase"]
[SourceQuality "1"]
[TimeControl "40/5400+30:1800+30"]

{[%evp 12,39,0,0,0,0,0,0,0,0,0,0,-3,0,0,0,0,0,0,0,-8,0,0,0,0,0,0,0,0,0]} 1. e4 {[%emt 0:01:37]} c5 {[%emt 0:00:45]} 2. Nf3 {[%emt 0:00:35][%cal Bg1f3,Bf3d4,Bd4e2,Be2g3][%mdl 32]} Nc6 {[%emt 0:00:04]} 3. d4 {[%emt 0:00:15]} cxd4 {[%emt 0:00:05]} 4. Nxd4 {[%emt 0:00:04]} Nf6 {[%emt 0:00:04]} 5. Nc3 {[%emt 0:00:05]} e5 {[%emt 0:00:03]} 6. Nde2 {[%emt 0:00:09]} Bc5 {[%emt 0:00:42] 6...Bc5 scores better than 6...Bb4.} 7. Ng3 {[%emt 0:00:09] The position is equal.} O-O {[%emt 0:00:06] B33: Sicilian: Pelikan and Sveshnikov Variations.} 8. Bc4 {[%emt 0:00:11]} d6 {[%emt 0:00:30]} 9. O-O {[%emt 0:00:08]} Ng4 {[%emt 0:02:00] aiming for ...Qh4.} 10. h3 {[%emt 0:04:32]} Qh4 {[%emt 0:00:33] Threatens to win with ...Nxf2.} 11. Qf3 {[%emt 0:00:13]} Nd4 {[%emt 0:00:20][%csl LRc2,LRf3]} 12. Qd3 {[%emt 0:00:05] [#] Dancing on a razor blade.} Be6 $146 {[%emt 0:00:06] Strongly threatening ...Bxc4.} ({Predecessor:} 12... Nf6 13. Na4 Bxh3 14. Nxc5 dxc5 15. c3 b5 16. Bxb5 Nxb5 17. Qxb5 Be6 18. Rd1 Ng4 {½-½ (68) Langner,L (2370)-Prymula,R (2255) Czech Republic 1994}) 13. hxg4 {[%emt 0:00:21] Nd5 is the strong threat.} Bxc4 {[%emt 0:00:05]} 14. Qxc4 {[%emt 0:00:03] Black must now prevent Be3.} Nf3+ $1 {[%emt 0:00:06]} 15. gxf3 {[%emt 0:00:04]} Qxg3+ {[%emt 0:00:05]} 16. Kh1 {[%emt 0:00:03]} Qh3+ {[%emt 0:00:05]} (16... Qxf3+ 17. Kh2 $16) (16... Bxf2 17. Rxf2 $1 Qxf2 18. Qe2 Qxe2 19. Nxe2 $16) 17. Kg1 {[%emt 0:00:02]} Qg3+ {[%emt 0:00:04]} (17... Qxf3 18. Kh2 $16) 18. Kh1 {[%emt 0:00:03]} Qh3+ {[%emt 0:00:05]} ({Don't take} 18... Qxf3+ 19. Kh2 $16) ({But not} 18... Bxf2 {[#]} 19. Rxf2 $1 Qxf2 20. Qe2 Qxe2 21. Nxe2 $16) 19. Kg1 {[%emt 0:00:02]} Qg3+ {[%emt 0:00:07]} ({Don't do} 19... Qxf3 20. Kh2 $16) 20. Kh1 {[%emt 0:00:05] A balanced but interesting game.  Weighted Error Value: White=0.00 (flawless) /Black=0.00 (flawless)} 1/2-1/2

[Event "FIDE Womens Grand Prix-I 2022-23"]
[Site "Nur-Sultan"]
[Date "2022.09.28"]
[Round "10.2"]
[White "Goryachkina, Aleksandra"]
[Black "Kosteniuk, Alexandra"]
[Result "1/2-1/2"]
[ECO "D19"]
[WhiteElo "2579"]
[BlackElo "2521"]
[Annotator "TA"]
[PlyCount "60"]
[EventDate "2022.09.15"]
[EventType "tourn"]
[EventCountry "KAZ"]
[SourceTitle "playchess.com"]
[Source "ChessBase"]
[SourceQuality "1"]
[TimeControl "40/5400+30:1800+30"]

{[%evp 21,60,24,23,5,39,0,20,-8,0,0,0,0,0,0,0,0,0,0,0,0,0,0,0,0,0,0,0,0,0,0,0,0,0,0,9,0,0,0,14,0,7]} 1. d4 {[%emt 0:00:09]} d5 {[%emt 0:00:06]} 2. c4 {[%emt 0:00:07]} c6 {[%emt 0:00:03]} 3. Nf3 {[%emt 0:00:12]} Nf6 {[%emt 0:00:11]} 4. Nc3 {[%emt 0:00:35]} dxc4 {[%emt 0:00:26]} 5. a4 {[%emt 0:00:16]} Bf5 {[%emt 0:00:23]} 6. e3 {[%emt 0:00:15][%cal Be2e3,Be3e4,Be4e5][%mdl 32]} e6 {[%emt 0:00:21]} 7. Bxc4 {[%emt 0:00:11]} Bb4 {[%emt 0:00:16]} 8. O-O {[%emt 0:00:17]} Nbd7 {[%emt 0:00:29]} 9. Qe2 {[%emt 0:00:29]} O-O {[%emt 0:00:15]} 10. e4 {[%emt 0:02:41]} Bg6 {[%emt 0:00:22]} 11. Bd3 {[%emt 0:01:02]} h6 {[%emt 0:00:15]} 12. e5 {[%emt 0:07:42] 12.Rd1 is a critical line. D19: Slav Defence: 5 a4 Bf5 6 e3: Main line with 9 Qe2.} Nd5 {[%emt 0:00:55]} 13. Nxd5 {[%emt 0:04:41]} cxd5 {[%emt 0:09:46] [#] The position is equal.} 14. Bf4 $146 {[%emt 0:04:27]} ({Predecessor:} 14. Be3 Qe7 {½-½ (14) Ghaem Maghami,E (2581)-Hossain,E (2503) Doha 2006}) 14... Rc8 {[%emt 0:02:49]} 15. Rfc1 {[%emt 0:07:04]} Bxd3 {[%emt 0:03:59]} 16. Qxd3 {[%emt 0:00:07]} Qe7 {[%emt 0:00:34]} 17. h4 {[%emt 0:03:23]} Nb6 {[%emt 0:01:19]} 18. b3 {[%emt 0:05:23]} Ba3 {[%emt 0:06:08]} 19. Rxc8 {[%emt 0:02:09]} Rxc8 {[%emt 0:00:06]} 20. h5 {[%emt 0:04:10]} Bb2 {[%emt 0:03:44]} 21. Rb1 {[%emt 0:02:13]} Qa3 {[%emt 0:03:16]} 22. Qe2 {[%emt 0:06:42]} Bc1 {[%emt 0:00:40]} 23. Rxc1 {[%emt 0:03:42]} Rxc1+ {[%emt 0:00:04]} 24. Bxc1 {[%emt 0:00:04]} Qxc1+ $11 {[%emt 0:00:04][%mdl 4096] Endgame KQN-KQN} 25. Qe1 {[%emt 0:05:06]} Qc2 {[%emt 0:03:45]} 26. Qb4 {[%emt 0:01:56] Hoping for a5.} Qc1+ {[%emt 0:00:09]} 27. Kh2 {[%emt 0:05:00]} Qf4+ {[%emt 0:18:47]} 28. Kg1 {[%emt 0:00:14] And now a5 would win.} Qc1+ {[%emt 0:00:04]} 29. Kh2 {[%emt 0:00:11] Threatens to win with a5.} Qf4+ {[%emt 0:00:05]} 30. Kg1 {[%emt 0:15:45] [#] Strongly threatening a5.} Qc1+ {[%emt 0:00:17] An interesting draw.  Weighted Error Value: White=0.06 (flawless) /Black=0.03 (flawless)} 1/2-1/2